bitfinex/quotes_SOLUSD_20250717
["timestamp","ask_amount","ask_price","bid_price","bid_amount"]
[1752740705754,14.47061608,173.35,173.32,29.76]
[1752740706241,6.48868004,173.35,173.32,29.76]
[1752740706430,0.72,173.35,173.32,29.76]
[1752740706832,13.75036164,173.36,173.32,30.42]
[1752740707034,14.47036164,173.36,173.32,30.42]
[1752740708066,6.4884256,173.36,173.32,30.42]
[1752740708231,14.47036164,173.36,173.32,30.42]
[1752740709054,0.72,173.38,173.33,0.66]
[1752740709256,0.72,173.37,173.33,5.44466491]
[1752740709478,5.44466491,173.37,173.32,29.76]
[1752740709763,0.72,173.36,173.32,30.42]
[1752740710350,5.44466491,173.37,173.33,0.66]
[1752740710549,6.16466491,173.37,173.33,0.66]
[1752740710847,6.4882866,173.37,173.33,0.66]
[1752740711154,11.93295151,173.37,173.33,0.66]
[1752740711333,0.72,173.36,173.33,0.66]
[1752740711530,0.72,173.36,173.32,35.20466491]
[1752740711857,11.21295151,173.37,173.33,0.66]
[1752740712058,11.21295151,173.37,173.32,35.20466491]
[1752740712059,0.72,173.36,173.32,35.20466491]
[1752740712437,0.72,173.36,173.32,35.86466491]
[1752740712638,0.72,173.36,173.32,30.42]
[1752740713065,11.21295151,173.37,173.32,30.42]
[1752740713267,0.72,173.35,173.32,29.76]
[1752740714063,6.48881762,173.35,173.32,29.76]
[1752740715468,5.44466491,173.36,173.32,30.42]
[1752740715469,5.76843414,173.36,173.32,30.42]
[1752740715650,5.76804714,173.37,173.33,0.66]
[1752740715857,11.93271205,173.37,173.33,0.66]
[1752740716170,0.72,173.36,173.33,0.66]
[1752740716542,5.44466491,173.4,173.35,31.44466491]
[1752740716855,5.76701268,173.4,173.36,6.10466491]
[1752740717166,153.86678156,173.41,173.37,6.10466491]
[1752740717345,5.76678156,173.41,173.37,6.10466491]
[1752740717662,6.48678156,173.41,173.37,6.10466491]
[1752740718749,6.48678156,173.41,173.38,5.44466491]
[1752740718933,5.76678156,173.41,173.38,6.10466491]
[1752740721583,6.48678156,173.41,173.38,5.44466491]
[1752740721865,5.76678156,173.41,173.38,6.10466491]
[1752740722070,6.48678156,173.41,173.38,6.10466491]
[1752740722362,5.76678156,173.41,173.38,26.0]
[1752740722568,0.72,173.4,173.38,26.0]
[1752740722764,6.48720564,173.4,173.38,26.0]
[1752740722992,6.16466491,173.39,173.34,0.66]
[1752740723193,5.44466491,173.38,173.34,29.7]
[1752740723398,6.16466491,173.39,173.34,35.14466491]
[1752740723582,6.48676533,173.41,173.37,5.44466491]
[1752740723771,0.72,173.4,173.37,26.0]
[1752740724169,0.72,173.39,173.37,26.0]
[1752740725699,0.72,173.38,173.37,26.0]
[1752740726389,11.21207909,173.39,173.37,26.0]
[1752740726700,6.48741418,173.39,173.37,26.0]
[1752740727085,11.21175198,173.4,173.37,26.0]
[1752740727484,5.76708707,173.4,173.37,26.0]
[1752740727996,5.76678111,173.41,173.37,31.44466491]
[1752740728205,5.76678111,173.41,173.38,0.66]
[1752740728904,11.93068001,173.43,173.39,6.10466491]
[1752740729197,0.72,173.42,173.38,6.10466491]
[1752740729404,6.4860151,173.43,173.39,6.10466491]
[1752740729791,5.7660151,173.43,173.4,6.10466491]
[1752740730104,5.7660151,173.43,173.4,0.66]
[1752740730608,11.93068001,173.43,173.38,0.66]
[1752740730804,6.4865569,173.42,173.38,6.10466491]
[1752740730992,0.72,173.41,173.38,5.44466491]
[1752740731191,11.93122181,173.42,173.38,6.10466491]
[1752740731989,11.93122181,173.42,173.38,0.66]
[1752740732303,0.72,173.41,173.37,61.14466491]
[1752740732494,0.72,173.41,173.37,61.82466491]
[1752740732805,5.7665569,173.42,173.38,6.12466491]
[1752740732989,5.7665569,173.42,173.39,5.44466491]
[1752740733303,5.7665569,173.42,173.39,0.68]
[1752740733606,6.4865569,173.42,173.38,5.44466491]
[1752740734008,6.4865569,173.42,173.38,6.12466491]
[1752740734314,5.44466491,173.43,173.37,61.4680077]
[1752740734315,5.76602291,173.43,173.39,6.12466491]
[1752740734600,5.76575158,173.44,173.4,6.12466491]
[1752740734982,5.76575158,173.44,173.41,0.68]
[1752740735209,1.5007,173.46,173.42,6.12466491]
[1752740735510,5.44466491,173.46,173.42,5.44466491]
[1752740735685,0.72,173.45,173.42,5.44466491]
[1752740735879,5.76568265,173.44,173.42,5.44466491]
[1752740736088,0.72,173.43,173.42,26.0]
[1752740737088,6.4860151,173.43,173.42,26.0]
[1752740737421,6.4860151,173.43,173.4,29.66]
[1752740737601,6.4860151,173.43,173.39,31.44466491]
[1752740737792,6.4860151,173.43,173.39,32.12466491]
[1752740738410,11.21042671,173.44,173.4,6.12466491]
[1752740738591,11.21042671,173.44,173.41,0.68]
[1752740738793,5.7657618,173.44,173.41,0.68]
[1752740739113,29.74,173.48,173.43,11.21068001]
[1752740739114,0.06,173.48,173.43,11.21068001]
[1752740739413,0.06,173.48,173.47,48.22934888]
[1752740739619,0.06,173.5,173.49,5.44466491]
[1752740739922,0.06,173.5,173.49,22.22934888]
[1752740740127,0.06,173.5,173.49,22.90934888]
[1752740740986,0.06,173.5,173.49,48.90934888]
[1752740741213,0.06,173.5,173.49,28.67336986]
[1752740741665,0.06,173.5,173.49,58.67336986]
[1752740743212,0.06,173.5,173.49,88.29336986]
[1752740744515,0.06,173.5,173.49,60.3]
[1752740744691,0.06,173.5,173.49,30.0]
[1752740744891,6.22466491,173.5,173.46,29.62]
[1752740745107,11.92868589,173.49,173.48,26.0]
[1752740745299,11.92868589,173.49,173.44,29.62]
[1752740745300,11.92868589,173.49,173.44,35.06466491]
[1752740745507,6.16466491,173.48,173.44,29.62]
[1752740745702,6.16466491,173.48,173.43,0.68]
[1752740745703,5.44466491,173.46,173.42,35.06466491]
[1752740745912,6.16466491,173.45,173.4,5.44466491]
[1752740746104,5.44466491,173.44,173.42,26.0]
[1752740746309,6.16466491,173.45,173.43,26.0]
[1752740746716,6.16466491,173.45,173.4,6.12466491]
[1752740746925,7.97646222,173.46,173.41,8.65646222]
[1752740747118,7.97646222,173.46,173.44,26.0]
[1752740747308,13.74158953,173.46,173.44,26.0]
[1752740747515,6.48475644,173.47,173.44,26.0]
[1752740747817,14.46121866,173.47,173.43,26.0]
[1752740748627,14.46121866,173.47,173.44,26.0]
[1752740748830,0.72,173.46,173.44,26.0]
[1752740749030,0.72,173.46,173.43,26.0]
[1752740749234,5.76568265,173.44,173.43,26.0]
[1752740749428,14.46214487,173.44,173.4,0.68]
[1752740749733,14.46214487,173.44,173.42,26.0]
[1752740749914,14.46214487,173.44,173.39,37.62646222]
[1752740750120,0.72,173.43,173.39,8.00646222]
[1752740750320,8.69646222,173.42,173.39,0.03]
[1752740750834,7.97646222,173.43,173.41,26.0]
[1752740751019,7.97646222,173.43,173.39,0.03]
[1752740751220,14.46267811,173.43,173.41,26.0]
[1752740751735,13.74267811,173.43,173.41,26.0]
[1752740752332,13.74219052,173.44,173.41,26.0]
[1752740752536,14.46219052,173.44,173.41,26.0]
[1752740753809,14.46219052,173.44,173.41,0.68]
[1752740753810,7.97646222,173.44,173.41,0.68]
[1752740754522,5.76545636,173.45,173.41,0.68]
[1752740754723,13.74214896,173.44,173.41,0.68]
[1752740755334,14.46214896,173.44,173.4,26.0]
[1752740757335,7.97646222,173.41,173.39,0.03]
[1752740757538,7.97646222,173.4,173.39,0.03]
[1752740757841,8.69646222,173.4,173.39,0.03]
[1752740758823,14.4634749,173.4,173.39,0.03]
[1752740759849,14.4634749,173.4,173.39,1e-08]
[1752740759850,31.24815887,173.4,173.39,1e-08]
[1752740760235,16.78468397,173.39,173.32,0.03]
[1752740760443,7.97646222,173.33,173.32,0.03]
[1752740760828,7.97646222,173.35,173.32,0.03]
[1752740761332,7.97646222,173.35,173.33,0.03]
[1752740761534,7.97646222,173.34,173.33,0.03]
[1752740762740,14.42536224,173.35,173.33,0.03]
[1752740763647,0.68,173.34,173.33,0.03]
[1752740764059,13.74536224,173.35,173.33,0.03]
[1752740764266,8.65646222,173.35,173.33,0.03]
[1752740764432,14.42521746,173.35,173.33,0.03]
[1752740764758,6.44875524,173.35,173.33,0.03]
[1752740764956,14.42521746,173.35,173.33,0.03]
[1752740765259,8.65646222,173.35,173.33,0.03]
[1752740765463,0.68,173.35,173.33,0.03]
[1752740765630,8.65646222,173.35,173.33,0.03]
[1752740765945,7.97646222,173.35,173.33,0.03]
[1752740766127,8.65646222,173.35,173.33,0.03]
[1752740766331,0.68,173.34,173.33,0.03]
[1752740766546,8.65646222,173.34,173.33,0.03]
[1752740767032,52.6139599,173.34,173.33,0.03]
[1752740767240,52.6139599,173.34,173.32,0.03]
[1752740767439,6.12927593,173.33,173.32,0.03]
[1752740768451,11.89861764,173.33,173.32,0.03]
[1752740769560,28.68330161,173.33,173.32,0.03]
[1752740769737,5.44927593,173.33,173.32,0.03]
[1752740770868,5.76934171,173.33,173.32,0.03]
[1752740771242,11.21861764,173.33,173.32,0.03]
[1752740771762,11.89861764,173.33,173.32,0.03]
[1752740771963,6.44934171,173.33,173.31,0.03]
[1752740772133,5.44927593,173.32,173.31,0.03]
[1752740772332,11.89895052,173.32,173.31,0.03]
[1752740772738,5.76967459,173.32,173.31,0.03]
[1752740772936,35.86900888,173.34,173.31,0.03]
[1752740773158,5.44927593,173.32,173.31,0.03]
[1752740773335,6.12927593,173.32,173.31,0.03]
[1752740773749,1.6363,173.31,173.25,0.03]
[1752740774066,30.3,173.3,173.25,0.03]
[1752740774362,5.77067343,173.29,173.25,0.03]
[1752740774565,5.44927593,173.26,173.25,0.03]
[1752740774745,5.44927593,173.27,173.25,0.03]
[1752740774946,7.99407368,173.27,173.25,0.03]
[1752740775162,7.99407368,173.26,173.25,0.03]
[1752740775659,8.67407368,173.26,173.25,0.03]
[1752740776659,5.77167263,173.26,173.25,0.03]
[1752740776864,13.76574631,173.26,173.25,0.03]
[1752740777040,7.99407368,173.26,173.25,0.03]
[1752740777440,14.44574631,173.26,173.25,0.03]
[1752740777634,6.45167263,173.26,173.25,0.03]
[1752740778156,14.44574631,173.26,173.25,0.03]
[1752740781156,28.87492788,173.26,173.22,0.03]
[1752740781351,7.99407368,173.23,173.22,0.03]
[1752740781554,38.31407368,173.23,173.22,0.03]
[1752740781744,38.31407368,173.23,173.21,0.1]
[1752740781745,40.56907368,173.23,173.21,0.1]
[1752740781939,0.68,173.22,173.21,0.1]
[1752740782142,8.67407368,173.22,173.21,0.1]
[1752740782741,14.4470791,173.22,173.21,0.1]
[1752740783475,13.7670791,173.22,173.21,0.1]
[1752740783647,44.0870791,173.22,173.21,0.1]
[1752740784060,30.34,173.24,173.21,0.77]
[1752740784342,30.34,173.24,173.22,0.67]
[1752740785461,30.34,173.26,173.23,0.67]
[1752740785660,38.33407368,173.26,173.23,0.67]
[1752740786050,38.33407368,173.26,173.21,0.1]
[1752740786250,38.33407368,173.26,173.22,0.67]
[1752740786446,38.33407368,173.26,173.21,0.1]
[1752740786651,38.33407368,173.26,173.23,0.67]
[1752740786855,39.01407368,173.26,173.21,0.1]
[1752740787053,38.33407368,173.26,173.22,0.67]
[1752740787361,44.1060549,173.26,173.22,0.67]
[1752740787854,44.1060549,173.26,173.23,0.67]
[1752740788366,0.5,173.25,173.22,7.99407368]
[1752740788549,0.5,173.25,173.24,0.67]
[1752740788749,0.5,173.25,173.22,8.66407368]
[1752740788968,13.76546414,173.27,173.22,8.66407368]
[1752740789272,7.99407368,173.26,173.23,0.67]
[1752740789476,5.77071476,173.29,173.24,8.66407368]
[1752740789647,7.99407368,173.3,173.25,34.66407368]
[1752740789969,38.29407368,173.3,173.26,0.67]
[1752740790172,36.81001811,173.31,173.27,0.67]
[1752740790470,30.36,173.31,173.28,0.67]
[1752740790847,30.36,173.31,173.29,0.67]
[1752740791050,0.06,173.31,173.29,0.67]
[1752740791670,0.06,173.31,173.3,0.71]
[1752740792048,0.06,173.31,173.3,8.70407368]
[1752740792370,0.06,173.31,173.3,0.71]
[1752740792544,0.06,173.31,173.3,8.70407368]
[1752740793373,0.06,173.31,173.3,0.71]
[1752740795049,0.06,173.31,173.3,8.70407368]
[1752740796590,0.06,173.31,173.3,14.47441413]
[1752740796751,0.06,173.31,173.3,31.2590981]
[1752740796952,5.44219179,173.4,173.33,26.0]
[1752740797162,5.44219179,173.41,173.36,31.44219179]
[1752740797371,6.12219179,173.41,173.36,32.15219179]
[1752740797577,30.22,173.43,173.37,6.15219179]
[1752740797578,5.44219179,173.42,173.37,6.15219179]
[1752740797847,11.88796184,173.44,173.42,26.0]
[1752740798071,11.2075908,173.45,173.42,26.0]
[1752740798269,6.44511084,173.46,173.42,26.0]
[1752740798463,11.20730263,173.46,173.42,26.0]
[1752740798770,5.76568265,173.44,173.42,26.0]
[1752740799275,8.65765947,173.43,173.42,26.0]
[1752740800583,8.65765947,173.43,173.38,34.68765947]
[1752740800584,14.42367457,173.43,173.38,34.68765947]
[1752740801057,0.68,173.42,173.38,34.68765947]
[1752740801684,6.44645649,173.42,173.38,34.68765947]
[1752740801870,13.74372013,173.43,173.38,33.97765947]
[1752740802083,13.74372013,173.43,173.39,8.68765947]
[1752740802306,30.92,173.47,173.41,7.97765947]
[1752740802585,5.82444037,173.48,173.44,7.97765947]
[1752740802955,13.80209984,173.48,173.44,8.68765947]
[1752740803476,13.80209984,173.48,173.44,0.71]
[1752740803685,13.74300971,173.45,173.41,26.71]
[1752740804082,14.42300971,173.45,173.41,26.71]
[1752740804678,6.44535024,173.45,173.41,26.71]
[1752740804983,13.74300971,173.45,173.41,26.71]
[1752740805394,13.74300971,173.45,173.42,0.71]
[1752740805685,8.65765947,173.44,173.39,26.0]
[1752740805987,7.97765947,173.42,173.37,35.64106535]
[1752740806177,7.97765947,173.42,173.37,8.93106535]
[1752740806375,7.97765947,173.42,173.38,0.71]
[1752740806579,7.97765947,173.42,173.37,34.93106535]
[1752740806760,7.97765947,173.42,173.39,0.71]
[1752740806961,8.65765947,173.43,173.39,0.71]
[1752740807285,8.65765947,173.43,173.4,0.71]
[1752740807286,7.97765947,173.43,173.4,0.71]
[1752740807491,5.76540955,173.45,173.41,0.71]
[1752740807686,13.74306902,173.45,173.41,0.71]
[1752740808672,13.74364974,173.44,173.39,7.97765947]
[1752740808984,14.42364974,173.44,173.4,0.71]
[1752740810365,13.74364974,173.44,173.41,0.71]
[1752740811189,5.76599027,173.44,173.42,0.71]
[1752740811375,13.74364974,173.44,173.4,0.71]
[1752740811762,7.97765947,173.43,173.4,0.71]
[1752740812188,5.76599027,173.44,173.4,0.71]
[1752740812376,7.97765947,173.43,173.4,0.71]
[1752740812798,14.42364974,173.44,173.4,0.71]
[1752740813100,7.97765947,173.43,173.37,31.7678978]
[1752740813287,7.97765947,173.39,173.34,0.71]
[1752740813591,7.97765947,173.39,173.35,34.68765947]
[1752740813792,0.68,173.41,173.36,0.71]
[1752740813994,8.65765947,173.41,173.37,0.71]
[1752740814374,5.76701268,173.4,173.37,0.71]
[1752740814606,5.76701268,173.4,173.35,34.68765947]
[1752740814809,13.74467215,173.4,173.36,0.71]
[1752740815609,7.97765947,173.4,173.37,0.71]
[1752740815976,6.44674727,173.41,173.37,0.71]
[1752740816171,7.97765947,173.39,173.35,0.71]
[1752740816377,13.74518074,173.39,173.35,0.71]
[1752740816798,7.97765947,173.39,173.34,43.98659788]
[1752740817010,7.97765947,173.41,173.36,8.68765947]
[1752740817178,7.97765947,173.4,173.37,0.71]
[1752740818999,5.44245383,173.4,173.37,0.71]
[1752740819595,5.44245383,173.41,173.36,11.21078844]
[1752740819802,5.44245383,173.41,173.38,0.71]
[1752740820385,11.20931417,173.41,173.36,5.44245383]
[1752740820585,5.44245383,173.4,173.37,0.71]
[1752740820795,5.44245383,173.4,173.35,6.15245383]
[1752740820993,5.44245383,173.4,173.36,0.71]
[1752740821204,5.76686034,173.41,173.37,0.71]
[1752740821502,5.44245383,173.42,173.38,0.67]
[1752740821803,6.14245383,173.41,173.36,6.11245383]
[1752740821997,5.44245383,173.41,173.37,0.67]
[1752740822502,11.20941743,173.41,173.37,0.67]
[1752740823411,5.44245383,173.39,173.34,36.35245383]
[1752740823596,6.14245383,173.39,173.34,36.35245383]
[1752740824300,5.7669636,173.41,173.3,12.08900395]
[1752740824301,11.21114254,173.35,173.3,12.08900395]
[1752740824493,5.44245383,173.34,173.3,1.54622445]
[1752740824692,0.7,173.34,173.3,0.87622445]
[1752740824882,5.76868871,173.35,173.3,0.87622445]
[1752740824883,5.44245383,173.32,173.3,0.87622445]
[1752740825982,0.7,173.33,173.3,0.87622445]
[1752740825983,6.14245383,173.33,173.3,0.87622445]
[1752740826182,11.21206927,173.33,173.3,0.87622445]
[1752740826934,5.76903334,173.34,173.3,0.87622445]
[1752740827088,5.76903334,173.34,173.31,0.67]
[1752740828223,11.21123653,173.35,173.31,0.67]
[1752740828589,5.44245383,173.35,173.31,0.67]
[1752740829294,5.76839242,173.36,173.3,6.31867828]
[1752740829593,5.44245383,173.35,173.32,0.67]
[1752740830680,5.44245383,173.35,173.31,0.03]
[1752740830885,5.44245383,173.35,173.31,0.7]
[1752740832924,11.21115745,173.35,173.31,0.7]
[1752740833132,11.91115745,173.35,173.31,0.03]
[1752740833722,11.91115745,173.35,173.32,0.67]
[1752740833723,5.44245383,173.35,173.32,0.67]
[1752740833927,11.2111832,173.35,173.32,0.67]
[1752740834090,11.2111832,173.35,173.31,0.03]
[1752740834291,11.9111832,173.35,173.31,0.7]
[1752740834984,11.9111832,173.35,173.31,0.03]
[1752740835188,5.44245383,173.33,173.31,0.03]
[1752740836829,0.7,173.34,173.31,0.03]
[1752740836830,5.44245383,173.34,173.31,0.7]
[1752740837209,5.44245383,173.34,173.31,0.03]
[1752740837530,5.44245383,173.33,173.31,0.03]
[1752740837731,6.14245383,173.33,173.31,0.03]
[1752740838113,6.14245383,173.32,173.31,0.03]
[1752740838821,11.91212842,173.32,173.31,0.03]
[1752740839220,62.72861489,173.32,173.28,0.03]
[1752740839420,5.44245383,173.29,173.28,0.03]
[1752740839625,8.26042601,173.29,173.28,0.03]
[1752740839811,8.96042601,173.29,173.28,0.03]
[1752740840139,56.58616106,173.32,173.28,0.03]
[1752740840333,5.44245383,173.29,173.28,0.03]
[1752740840823,11.91312726,173.29,173.28,0.03]
[1752740841618,6.47067343,173.29,173.28,0.03]
[1752740841813,6.14245383,173.29,173.28,0.03]
[1752740842004,5.44245383,173.29,173.28,0.03]
[1752740842217,11.21256713,173.31,173.28,0.03]
[1752740842420,11.21256713,173.31,173.28,0.7]
[1752740842614,5.76971465,173.32,173.29,6.11245383]
[1752740842916,11.21146271,173.34,173.3,0.67]
[1752740843430,11.91146271,173.34,173.3,0.67]
[1752740843737,5.76857155,173.36,173.33,5.44245383]
[1752740843907,5.76857155,173.36,173.31,0.67]
[1752740844107,11.91102538,173.36,173.32,5.44245383]
[1752740844715,6.46857155,173.36,173.32,6.11245383]
[1752740845230,6.46857155,173.36,173.32,0.67]
[1752740845410,11.91102538,173.36,173.31,5.44245383]
[1752740845732,11.91102538,173.36,173.31,6.11245383]
[1752740846522,11.91102538,173.36,173.32,0.67]
[1752740846717,6.46857155,173.36,173.32,6.11245383]
[1752740846922,5.76857155,173.36,173.32,6.11245383]
[1752740847520,2.2062,173.38,173.33,6.11245383]
[1752740847521,7.9739959,173.38,173.33,6.11245383]
[1752740847720,11.91024973,173.38,173.34,0.67]
[1752740848428,0.7,173.37,173.32,0.67]
[1752740848643,0.7,173.37,173.33,5.44245383]
[1752740849143,0.7,173.37,173.32,0.67]
[1752740849144,11.91079716,173.36,173.31,5.44245383]
[1752740849318,11.21079716,173.36,173.31,5.44245383]
[1752740849638,0.7,173.35,173.31,5.44245383]
[1752740850138,0.7,173.35,173.31,6.11245383]
[1752740850333,5.76834333,173.36,173.32,5.44245383]
[1752740850638,11.91079716,173.36,173.31,6.11245383]
[1752740851019,5.76834333,173.36,173.32,6.11245383]
[1752740851220,5.76813074,173.37,173.33,6.11245383]
[1752740851634,6.41813074,173.37,173.33,6.11245383]
[1752740852436,11.21025352,173.38,173.34,0.68]
[1752740852743,11.85990048,173.39,173.35,0.68]
[1752740852924,6.41744665,173.39,173.35,0.68]
[1752740853130,11.91948948,173.4,173.35,5.44245383]
[1752740853330,11.91948948,173.4,173.36,0.68]
[1752740854340,11.91948948,173.4,173.35,5.44245383]
[1752740854543,6.09245383,173.39,173.34,6.12245383]
[1752740855314,5.44245383,173.36,173.31,56.79]
[1752740855518,5.44245383,173.35,173.31,56.79]
[1752740855735,6.09245383,173.35,173.31,36.23245383]
[1752740855930,5.44245383,173.33,173.31,0.03]
[1752740856314,11.86212842,173.32,173.31,0.03]
[1752740857618,6.41967459,173.32,173.31,0.03]
[1752740857823,5.76967459,173.32,173.31,0.03]
[1752740858018,11.21212842,173.32,173.31,0.03]
[1752740859047,11.21189507,173.33,173.31,0.03]
[1752740861248,5.76834333,173.36,173.32,6.12245383]
[1752740861549,5.76806852,173.37,173.33,6.12245383]
[1752740861725,5.76806852,173.37,173.34,0.68]
[1752740861927,11.21021617,173.38,173.34,0.68]
[1752740862122,11.85988548,173.39,173.35,0.68]
[1752740862321,0.06,173.4,173.36,6.12245383]
[1752740862537,0.06,173.4,173.37,0.68]
[1752740862538,5.82710167,173.4,173.37,0.68]
[1752740862741,0.65,173.39,173.34,26.68]
[1752740863050,11.21083773,173.36,173.32,32.12245383]
[1752740863350,11.21052005,173.37,173.33,0.68]
[1752740863523,5.76806622,173.37,173.33,6.12245383]
[1752740863948,11.86052005,173.37,173.32,26.0]
[1752740864149,11.86052005,173.37,173.32,32.12245383]
[1752740864337,11.86052005,173.37,173.33,0.68]
[1752740865060,44.57753171,173.4,173.32,31.44245383]
[1752740865061,5.76773946,173.38,173.34,6.12245383]
[1752740865425,5.76773946,173.38,173.35,0.68]
[1752740865624,5.76773946,173.38,173.34,5.44245383]
[1752740865826,5.76773946,173.38,173.34,6.12245383]
[1752740866031,5.76773946,173.38,173.34,0.68]
[1752740866343,11.86019329,173.38,173.34,0.68]
[1752740866930,5.76773946,173.38,173.34,6.12245383]
[1752740867457,5.76773946,173.38,173.35,0.68]
[1752740867961,30.16,173.4,173.36,6.12245383]
[1752740868160,0.06,173.4,173.37,0.68]
[1752740868533,5.82712512,173.4,173.37,0.68]
[1752740869130,11.91957895,173.4,173.36,5.44245383]
[1752740869358,0.65,173.39,173.36,5.44245383]
[1752740869528,11.26957895,173.4,173.36,5.44245383]
[1752740869728,11.91957895,173.4,173.36,6.12245383]
[1752740871067,0.06,173.4,173.37,6.12245383]
[1752740871365,0.06,173.4,173.38,0.68]
[1752740871957,0.06,173.4,173.37,5.44245383]
[1752740872160,0.06,173.4,173.37,0.68]
[1752740872338,0.06,173.4,173.38,6.12245383]
[1752740872752,0.06,173.4,173.39,6.12245383]
[1752740874143,0.06,173.4,173.39,0.68]
[1752740874545,0.06,173.4,173.39,6.12245383]
[1752740876266,0.06,173.4,173.39,11.88979912]
[1752740876436,0.06,173.4,173.39,36.44734529]
[1752740876839,0.06,173.4,173.39,41.88979912]
[1752740877353,0.06,173.4,173.39,36.12245383]
[1752740878765,0.06,173.4,173.39,41.88979912]
[1752740879068,0.06,173.4,173.39,36.12245383]
[1752740881564,0.06,173.4,173.39,35.44245383]
[1752740881936,0.06,173.4,173.39,36.15245383]
[1752740882351,0.06,173.4,173.39,41.91979912]
[1752740884571,0.06,173.4,173.39,36.15245383]
[1752740885241,0.06,173.4,173.39,41.91979912]
[1752740886548,0.06,173.4,173.39,36.47734529]
[1752740886874,0.06,173.4,173.39,41.91979912]
[1752740887073,0.06,173.4,173.39,36.15245383]
[1752740888173,0.06,173.4,173.39,41.91979912]
[1752740892077,0.06,173.4,173.39,5.44245383]
[1752740892281,0.72,173.4,173.36,5.44245383]
[1752740892459,6.10245383,173.39,173.34,5.44245383]
[1752740892661,6.10245383,173.38,173.34,29.9]
[1752740893068,5.44245383,173.38,173.34,29.9]
[1752740893276,0.66,173.37,173.34,29.9]
[1752740893464,5.76801061,173.37,173.34,29.9]
[1752740893983,11.87021927,173.38,173.34,36.05245383]
[1752740895165,11.87021927,173.38,173.34,30.61]
[1752740895674,6.42776544,173.38,173.34,30.61]
[1752740895880,11.20992725,173.39,173.35,0.71]
[1752740896187,11.86992725,173.39,173.35,0.71]
[1752740896688,11.86992725,173.39,173.34,35.34245383]
[1752740896980,11.86992725,173.39,173.34,36.05245383]
[1752740897587,0.66,173.38,173.34,36.05245383]
[1752740898676,5.44245383,173.36,173.32,55.88]
[1752740898885,6.42873468,173.35,173.32,35.32245383]
[1752740899185,5.76873468,173.35,173.32,35.32245383]
[1752740899557,5.76873468,173.35,173.32,36.03245383]
[1752740900173,5.76873468,173.35,173.32,30.59]
[1752740900480,11.21085249,173.36,173.32,30.59]
[1752740900667,11.87059411,173.37,173.32,36.03245383]
[1752740901058,11.87059411,173.37,173.32,35.32245383]
[1752740901285,11.87059411,173.37,173.33,0.71]
[1752740901487,6.42814028,173.37,173.33,0.71]
[1752740901683,5.76747272,173.39,173.35,5.44245383]
[1752740901983,5.76747272,173.39,173.36,0.71]
[1752740902189,5.82711262,173.4,173.37,0.71]
[1752740902372,11.26956645,173.4,173.37,0.71]
[1752740902687,5.82711262,173.4,173.37,0.71]
[1752740902884,0.06,173.4,173.37,0.71]
[1752740903063,0.06,173.4,173.37,6.15245383]
[1752740903260,0.06,173.4,173.38,0.71]
[1752740903863,11.26952614,173.4,173.34,35.60894954]
[1752740904169,6.10245383,173.39,173.34,41.76140337]
[1752740904374,0.66,173.39,173.35,6.15245383]
[1752740904572,11.26952614,173.4,173.37,5.44245383]
[1752740904573,0.06,173.4,173.37,5.44245383]
[1752740904770,0.06,173.4,173.38,0.71]
[1752740904978,0.06,173.4,173.39,5.44245383]
[1752740905483,0.06,173.4,173.39,6.15245383]
[1752740906076,0.06,173.4,173.39,22.9371378]
[1752740906879,0.06,173.4,173.39,28.70448309]
[1752740907291,0.06,173.43,173.39,48.56530014]
[1752740907602,0.06,173.43,173.42,48.2271378]
[1752740907802,0.06,173.43,173.42,42.78468397]
[1752740907967,0.06,173.43,173.42,48.9371378]
[1752740908995,0.06,173.43,173.42,54.70348539]